Department Family,Entity,Date,Expenses Type,Expense Area, Supplier ,Transaction Number, Total 
Department of Health,The Christie NHS Foundation Trust,28/07/2016,Drugs,Cancer Centre Services,ALCURA UK LIMITED,528182,2627788.07
Department of Health,The Christie NHS Foundation Trust,21/07/2016,Drugs,Cancer Centre Services,ALCURA UK LIMITED,528519,131834.02
Department of Health,The Christie NHS Foundation Trust,21/07/2016,Drugs,Cancer Centre Services,ALCURA UK LIMITED,528183,-27856.75
Department of Health,The Christie NHS Foundation Trust,28/07/2016,Drugs,Cancer Centre Services,ALCURA UK LIMITED,528179,50540.76
Department of Health,The Christie NHS Foundation Trust,07/07/2016,Drugs,Cancer Centre Services,BAXTER HEALTHCARE LTD,527098,419883.16
Department of Health,The Christie NHS Foundation Trust,21/07/2016,Drugs,Cancer Centre Services,BAXTER HEALTHCARE LTD,527195,391021.88
Department of Health,The Christie NHS Foundation Trust,01/07/2016,Drugs,Cancer Centre Services,BAXTER HEALTHCARE LTD,528505,336207.6
Department of Health,The Christie NHS Foundation Trust,14/07/2016,Drugs,Cancer Centre Services,BAXTER HEALTHCARE LTD,527096,405098.59
Department of Health,The Christie NHS Foundation Trust,07/07/2016,Drugs,Cancer Centre Services,BAXTER HEALTHCARE LTD,526116,328696.15
Department of Health,The Christie NHS Foundation Trust,07/07/2016,Drugs,Cancer Centre Services,BAXTER HEALTHCARE LTD,526007,391796.46
Department of Health,The Christie NHS Foundation Trust,28/07/2016,Drugs,Cancer Centre Services,BOLTON NHS FOUNDATION TRUST,527907,33581.79
Department of Health,The Christie NHS Foundation Trust,14/07/2016,Medical Equipment,Cancer Networked Services,BRAINLAB LTD,526609,43668
Department of Health,The Christie NHS Foundation Trust,28/07/2016,Pathology Tests ,Cancer Centre Services,CPP FACILITIES LLP,529087,273380.77
Department of Health,The Christie NHS Foundation Trust,21/07/2016,Domestic Welfare Upgrades,Estates & Facilities,CRUDEN PROPERTY SERVICES LTD,527670,58203.98
Department of Health,The Christie NHS Foundation Trust,21/07/2016,Medical Equipment,Cancer Centre Services,DIRECT HEALTHCARE SERVICES LTD,526835,70318.8
Department of Health,The Christie NHS Foundation Trust,07/07/2016,Drugs,Cancer Centre Services,EAST CHESHIRE NHS TRUST,526212,105138.45
Department of Health,The Christie NHS Foundation Trust,21/07/2016,Drugs,Cancer Networked Services,EAST CHESHIRE NHS TRUST,527457,40925
Department of Health,The Christie NHS Foundation Trust,25/07/2016,Computer Software,Cancer Centre Services,ICNET LTD,521832,183139.49
Department of Health,The Christie NHS Foundation Trust,25/07/2016,Computer Software,Cancer Centre Services,ICNET LTD,527588,-67033.2
Department of Health,The Christie NHS Foundation Trust,21/07/2016,Proton Beam Development (PBT),Capital,INTERSERVE CONSTRUCTION LTD,528867,3315898.96
Department of Health,The Christie NHS Foundation Trust,21/07/2016,Christie IPU Development,Capital,INTERSERVE CONSTRUCTION LTD,528866,352694.72
Department of Health,The Christie NHS Foundation Trust,07/07/2016,Rates 16/17,Estates & Facilities,M/CR CITY COUNCIL (RATES) DD,528506,75061
Department of Health,The Christie NHS Foundation Trust,14/07/2016,Proton Beam Development (PBT),Capital,MACE LTD,527349,30580
Department of Health,The Christie NHS Foundation Trust,28/07/2016,Drugs,Cancer Centre Services,MID CHESHIRE HOSPITALS NHS FT,527466,57680.64
Department of Health,The Christie NHS Foundation Trust,28/07/2016,Drugs,Cancer Centre Services,MID CHESHIRE HOSPITALS NHS FT,528452,45630.25
Department of Health,The Christie NHS Foundation Trust,07/07/2016,Blood Products,Cancer Networked Services,NHS BLOOD AND TRANSPLANT,526211,166154.5
Department of Health,The Christie NHS Foundation Trust,15/07/2016,NHS Litigation (NHSLA),Quality & Standards,NHS LITIGATION AUTHORITY,528734,56990
Department of Health,The Christie NHS Foundation Trust,21/07/2016,Stock for all Wards & Departments,All Wards and Departments,NHS SUPPLY CHAIN,528558,35163.5
Department of Health,The Christie NHS Foundation Trust,28/07/2016,Stock for all Wards & Departments,All Wards and Departments,NHS SUPPLY CHAIN,529076,30711.75
Department of Health,The Christie NHS Foundation Trust,14/07/2016,Stock for all Wards & Departments,All Wards and Departments,NHS SUPPLY CHAIN,528081,36955.6
Department of Health,The Christie NHS Foundation Trust,07/07/2016,Stock for all Wards & Departments,All Wards and Departments,NHS SUPPLY CHAIN,527440,31468.99
Department of Health,The Christie NHS Foundation Trust,25/07/2016,Project Costs,Cancer Centre Services,PHILIPS HEALTHCARE,527939,35150.31
Department of Health,The Christie NHS Foundation Trust,28/07/2016,Project Costs,Cancer Networked Services,PHILIPS HEALTHCARE,527868,41822.38
Department of Health,The Christie NHS Foundation Trust,21/07/2016,Audit Assurance & Fraud Plan 2016/17,Finance & Business Development,ROYAL LIVERPOOL & BROADGREEN NHS TRUST,527303,25662
Department of Health,The Christie NHS Foundation Trust,14/07/2016,Patient Testing Service ,Cancer Networked Services,THE ANTHONY NOLAN BONE MARROW,527296,34419.6
Department of Health,The Christie NHS Foundation Trust,28/07/2016,Medical Equipment Maintenace Contract,Cancer Networked Services,VARIAN MEDICAL SYSTEMS UK LTD,527725,562806
Department of Health,The Christie NHS Foundation Trust,21/07/2016,Medical Equipment,Capital,WARDRAY PREMISE,528004,33060
Department of Health,The Christie NHS Foundation Trust,21/07/2016,Christie @ Wigan - Jun 16,Cancer Networked Services,WRIGHTINGTON WIGAN AND LEIGH NHS FT,527442,229219.17
